bitfinex-derivatives/quotes_BTCF0:USTF0_20251110
["timestamp","ask_amount","ask_price","bid_price","bid_amount"]
[1762739333256,0.12550893,105890.0,105880.0,0.90450853]
[1762739333557,0.00514141,105890.0,105880.0,1.21912996]
[1762739333761,0.05036752,105900.0,105890.0,0.1266983]
[1762739333956,0.07,105900.0,105890.0,0.89599973]
[1762739334560,0.07,105900.0,105890.0,0.97074135]
[1762739335066,0.071,105900.0,105890.0,0.97274135]
[1762739335366,0.073,105900.0,105890.0,0.97874135]
[1762739335559,0.073,105900.0,105890.0,1.12614135]
[1762739335760,0.05328318,105900.0,105890.0,1.21482135]
[1762739335963,0.06748455,105910.0,105900.0,0.1301895]
[1762739336260,0.09233258,105910.0,105900.0,0.62504143]
[1762739336461,0.12848258,105910.0,105900.0,0.58599093]
[1762739337059,0.13448258,105910.0,105900.0,0.58699093]
[1762739337566,0.14048258,105910.0,105900.0,0.58799093]
[1762739337766,0.03698944,105910.0,105900.0,0.58799093]
[1762739338458,0.03698944,105910.0,105900.0,0.87799093]
[1762739338862,0.03698944,105910.0,105900.0,0.58799093]
[1762739339060,0.03698944,105910.0,105900.0,0.90799093]
[1762739339365,0.01433944,105910.0,105900.0,0.72799093]
[1762739340359,0.08504241,105910.0,105900.0,0.72799093]
[1762739340761,0.06239241,105910.0,105900.0,0.72799093]
[1762739341162,0.06239241,105910.0,105900.0,0.89799093]
[1762739341560,0.01214141,105910.0,105900.0,0.58799093]
[1762739342065,0.01214141,105910.0,105900.0,0.56799093]
[1762739342266,0.01214141,105910.0,105900.0,0.85199412]
[1762739342464,0.01214141,105910.0,105900.0,1.08807412]
[1762739342667,0.01214141,105910.0,105900.0,0.83807412]
[1762739343264,0.01214141,105910.0,105900.0,0.80407093]
[1762739343562,0.01214141,105910.0,105900.0,0.92407093]
[1762739343865,0.01214141,105910.0,105900.0,0.99807412]
[1762739344271,0.01214141,105910.0,105900.0,0.72799093]
[1762739344464,0.03479141,105910.0,105900.0,0.72799093]
[1762739344669,0.03698944,105910.0,105900.0,0.72799093]
[1762739344968,0.07313944,105910.0,105900.0,0.72799093]
[1762739345267,0.07313944,105910.0,105900.0,0.56799133]
[1762739345470,0.07313944,105910.0,105900.0,1.18691133]
[1762739345667,0.05935944,105910.0,105900.0,1.18691133]
[1762739346269,0.07313944,105910.0,105900.0,0.47354143]
[1762739346567,0.07313944,105910.0,105900.0,1.08246143]
[1762739347073,0.03698944,105910.0,105900.0,1.17691123]
[1762739347266,0.01214141,105910.0,105900.0,1.37691123]
[1762739347461,0.00209459,105910.0,105900.0,1.18691123]
[1762739347766,0.00209459,105910.0,105900.0,1.37691123]
[1762739348864,0.07014141,105920.0,105910.0,0.133021]
[1762739349166,0.01378,105940.0,105930.0,0.1224833]
[1762739349167,0.0588,105940.0,105930.0,0.1224833]
[1762739349478,0.0588,105940.0,105930.0,0.56178473]
[1762739349479,0.06099803,105940.0,105930.0,0.56178473]
[1762739349666,0.02265,105940.0,105930.0,0.56178473]
[1762739349863,0.0588,105950.0,105940.0,0.1224743]
[1762739350065,0.06099803,105950.0,105940.0,0.56177573]
[1762739350464,0.06099803,105950.0,105940.0,0.48736143]
[1762739350663,0.06099803,105950.0,105940.0,0.38886]
[1762739351065,0.00014141,105960.0,105950.0,0.1224655]
[1762739351266,1e-08,105960.0,105950.0,0.95026836]
[1762739351567,0.10905794,106000.0,105990.0,0.1224298]
[1762739351769,0.11125597,106000.0,105990.0,0.94253123]
[1762739351959,0.06099803,106000.0,105990.0,0.8640298]
[1762739352158,0.06099803,106000.0,105990.0,0.94253123]
[1762739352557,0.06099803,106000.0,105990.0,0.93025879]
[1762739352762,0.11125597,106000.0,105990.0,1.00417518]
[1762739352958,0.11125597,106000.0,105990.0,0.74966]
[1762739353166,0.11125597,106000.0,105990.0,0.8440298]
[1762739353362,0.11125597,106000.0,105990.0,0.8640298]
[1762739353564,0.06099803,106000.0,105990.0,0.8640298]
[1762739353764,0.06599803,106000.0,105990.0,0.77066]
[1762739354067,0.06599803,106000.0,105990.0,0.8450298]
[1762739354272,0.06599803,106000.0,105990.0,0.98352295]
[1762739354472,0.005,106000.0,105990.0,1.00702295]
[1762739354672,0.03684803,106000.0,105990.0,1.08287219]
[1762739354972,0.07299803,106000.0,105990.0,0.98502812]
[1762739355168,0.07299803,106000.0,105990.0,1.07939832]
[1762739355777,0.07299803,106000.0,105990.0,0.98502812]
[1762739356271,0.00014141,106010.0,106000.0,0.0984213]
[1762739356472,0.11139738,106010.0,106000.0,0.36486]
[1762739357476,0.08112314,106040.0,106020.0,0.0943435]
[1762739357777,0.05953267,106040.0,106030.0,0.81813273]
[1762739357975,0.05953267,106040.0,106030.0,0.83813273]
[1762739358161,0.05953267,106040.0,106030.0,0.81813273]
[1762739358162,0.0588,106040.0,106030.0,0.81813273]
[1762739358369,0.01378,106040.0,106030.0,0.81813273]
[1762739358561,0.01378,106040.0,106030.0,1.10813273]
[1762739358967,0.01378,106040.0,106030.0,0.81813273]
[1762739359168,0.03716267,106040.0,106030.0,0.83813273]
[1762739359369,0.05976267,106040.0,106030.0,0.83813273]
[1762739359568,0.05976267,106040.0,106030.0,0.91196826]
[1762739359774,0.05948285,106050.0,106040.0,0.0943257]
[1762739360075,0.4550966,106080.0,106070.0,0.0942991]
[1762739360076,0.06734314,106080.0,106070.0,0.0942991]
[1762739360266,0.01420267,106080.0,106070.0,0.2227249]
[1762739360465,0.05981267,106080.0,106070.0,0.25499028]
[1762739360672,0.05981267,106080.0,106070.0,0.81809713]
[1762739360977,0.05981267,106080.0,106070.0,0.83809713]
[1762739361179,0.06781267,106080.0,106070.0,0.83909713]
[1762739361376,0.82944601,106080.0,106070.0,0.001]
[1762739361574,0.04561,106050.0,106040.0,0.36187195]
[1762739361768,0.04634267,106050.0,106040.0,0.36187195]
[1762739361976,0.04634267,106050.0,106010.0,0.3608]
[1762739361977,0.05908,106020.0,106010.0,0.3608]
[1762739362272,0.05981267,106020.0,106010.0,0.45735043]
[1762739362474,0.05981267,106020.0,106010.0,0.36299803]
[1762739362665,0.05981267,106020.0,106010.0,0.45735043]
[1762739362869,0.05988508,106020.0,106010.0,0.45735043]
[1762739363176,0.05988508,106020.0,106010.0,0.36299803]
[1762739363374,0.06188508,106020.0,106010.0,0.47235043]
[1762739363580,0.06488508,106020.0,106010.0,0.40099803]
[1762739364275,0.06188508,106020.0,106010.0,0.37799803]
[1762739364581,0.06388508,106020.0,106010.0,0.39199803]
[1762739364877,0.06188508,106020.0,106010.0,0.37699803]
[1762739365076,0.06288508,106020.0,106010.0,0.38499803]
[1762739365577,0.06288508,106020.0,106010.0,0.47935043]
[1762739365763,0.06188508,106020.0,106010.0,0.60984358]
[1762739365965,0.06088508,106020.0,106010.0,0.60284358]
[1762739366174,0.06288508,106020.0,106010.0,0.61484358]
[1762739367068,0.06288508,106020.0,106010.0,0.635985]
[1762739367069,0.01654241,106020.0,106010.0,0.635985]
[1762739367277,0.06288508,106020.0,106010.0,0.615985]
[1762739367579,0.06288508,106020.0,106010.0,0.52049118]
[1762739367769,0.051558,106020.0,106010.0,0.52049118]
[1762739368379,0.051558,106020.0,106010.0,0.61484358]
[1762739369073,0.04634267,106020.0,106010.0,0.38199803]
[1762739369279,0.04237353,106020.0,106010.0,0.38199803]
[1762739369878,0.13671703,106020.0,106010.0,0.38199803]
[1762739370078,1.09751703,106020.0,106010.0,0.02119803]
[1762739370670,0.64237353,106020.0,106010.0,0.38199803]
[1762739370879,0.04237353,106020.0,106010.0,0.47635043]
[1762739371076,0.04237353,106020.0,106010.0,0.38199803]
[1762739371271,0.04237353,106020.0,106010.0,0.47635043]
[1762739371482,0.04237353,106020.0,106010.0,0.61484358]
[1762739371674,0.04237353,106020.0,106010.0,0.63484358]
[1762739371874,0.01347,106020.0,106010.0,0.615985]
[1762739372080,0.01347,106020.0,106010.0,0.635985]
[1762739373077,0.06653552,106030.0,106010.0,0.635985]
[1762739373282,0.06653552,106030.0,106020.0,0.4551435]
[1762739373477,0.11214552,106030.0,106020.0,0.36299803]
[1762739373674,0.11214552,106030.0,106020.0,0.36413945]
[1762739374579,0.20648022,106030.0,106020.0,0.36299803]
[1762739374786,0.14008611,106030.0,106020.0,0.36299803]
[1762739374984,0.20648022,106030.0,106020.0,0.36299803]
[1762739375187,0.20848022,106030.0,106020.0,0.36299803]
[1762739375484,0.2099521,106030.0,106020.0,0.36299803]
[1762739375870,0.1156174,106030.0,106020.0,0.36299803]
[1762739376377,0.12974851,106030.0,106020.0,0.45734163]
[1762739376586,0.11565412,106030.0,106020.0,0.36399803]
[1762739377177,0.09300086,106030.0,106020.0,0.36399803]
[1762739377788,0.08167423,106030.0,106020.0,0.36513945]
[1762739377977,0.10468423,106030.0,106020.0,0.36513945]
[1762739378482,0.03778152,106030.0,106020.0,0.36513945]
[1762739378682,0.09299212,106030.0,106020.0,0.5979762]
[1762739379384,0.11559212,106030.0,106020.0,0.5979762]
[1762739379579,0.11559212,106030.0,106020.0,0.5036326]
[1762739379784,0.11559212,106030.0,106020.0,0.5979762]
[1762739379986,0.11559212,106030.0,106020.0,0.5036326]
[1762739380177,0.04861,106030.0,106020.0,0.5036326]
[1762739380379,0.1316071,106030.0,106020.0,0.5036326]
[1762739381382,0.1316071,106030.0,106020.0,0.5979762]
[1762739383074,0.1316071,106030.0,106020.0,0.5036326]
[1762739383275,0.1316071,106030.0,106020.0,0.5979762]
[1762739383989,0.1316071,106030.0,106020.0,0.36513945]
[1762739384783,0.1316071,106030.0,106020.0,0.45948305]
[1762739384983,0.1090071,106030.0,106020.0,0.45948305]
[1762739385185,0.09308568,106030.0,106020.0,0.45948305]
[1762739385593,0.06712816,106030.0,106020.0,0.45948305]
[1762739386381,0.06712816,106030.0,106020.0,0.47948305]
[1762739386583,0.1420771,106040.0,106030.0,0.0943346]
[1762739386880,0.1420771,106040.0,106030.0,0.5969672]
[1762739387385,0.1420771,106040.0,106030.0,0.6169672]
[1762739387587,0.01347,106040.0,106030.0,0.6169672]
[1762739387787,0.13120325,106040.0,106030.0,0.6169672]
[1762739387986,0.21513113,106040.0,106030.0,0.6169672]
[1762739388290,0.10139788,106040.0,106030.0,0.6179672]
[1762739388491,0.10439788,106040.0,106030.0,0.6179672]
[1762739388892,0.14945788,106040.0,106030.0,0.6179672]
[1762739389193,0.09307304,106040.0,106030.0,0.6179672]
[1762739389698,0.007,106040.0,106030.0,0.6179672]
[1762739390186,0.01999,106040.0,106030.0,0.45947405]
[1762739390387,0.01999,106040.0,106030.0,0.6179672]
[1762739391086,0.007,106040.0,106030.0,0.6179672]
[1762739392495,0.01999,106040.0,106030.0,0.6179672]
[1762739392696,0.007,106040.0,106030.0,0.6179672]
[1762739392889,0.007,106040.0,106030.0,0.57120323]
[1762739393096,0.007,106040.0,106030.0,0.57006181]
[1762739393396,0.007,106040.0,106030.0,0.57120323]
[1762739393698,0.01999,106040.0,106030.0,0.47686863]
[1762739393995,0.04269,106040.0,106030.0,0.47686863]
[1762739394498,0.04269,106040.0,106030.0,0.45686863]
[1762739394698,0.06462,106040.0,106030.0,0.45686863]
[1762739394893,0.06062,106040.0,106030.0,0.45686863]
[1762739395102,0.05496004,106040.0,106030.0,0.61704578]
[1762739395400,0.05762,106050.0,106040.0,0.0202]
[1762739395584,0.05762,106050.0,106040.0,0.50144049]
[1762739395788,0.05762,106050.0,106040.0,0.59462497]
[1762739395990,0.02413745,106060.0,106050.0,0.03045]
[1762739396193,0.02413745,106060.0,106050.0,0.48776503]
[1762739396393,0.02413745,106060.0,106050.0,0.58063563]
[1762739397296,0.00220745,106060.0,106050.0,0.58063563]
[1762739397497,0.05762,106070.0,106060.0,0.04495]
[1762739397701,0.05762,106070.0,106060.0,0.59512673]
[1762739397897,0.05762,106070.0,106060.0,0.59398531]
[1762739398490,0.1519192,106070.0,106060.0,0.49967721]
[1762739398696,0.1519192,106070.0,106060.0,0.40794803]
[1762739399493,0.1529192,106070.0,106060.0,0.40894803]
[1762739399892,0.1529192,106070.0,106060.0,0.04814803]
[1762739401988,0.05862,106070.0,106060.0,0.14245613]
[1762739402192,0.1529192,106070.0,106060.0,0.14245613]
[1762739402904,0.1529192,106070.0,106060.0,0.04814803]
[1762739403388,0.5137192,106070.0,106060.0,0.00319803]
[1762739403798,0.5137192,106070.0,106060.0,0.001]
[1762739406300,0.5137192,106070.0,106060.0,0.09750613]
[1762739406603,0.5137192,106070.0,106060.0,0.00319803]
[1762739406996,0.5137192,106070.0,106060.0,0.11952613]
[1762739407195,0.1529192,106070.0,106060.0,0.09750613]
[1762739407390,0.1529192,106070.0,106060.0,0.00319803]
[1762739407596,0.5137192,106070.0,106060.0,0.00319803]
[1762739409004,0.1529192,106070.0,106060.0,0.14245613]
[1762739409606,0.05862,106070.0,106060.0,0.23418531]
[1762739409800,0.05862,106070.0,106060.0,0.59984673]
[1762739410108,0.05862,106070.0,106060.0,0.61984673]
[1762739410109,0.001,106070.0,106060.0,0.61984673]
[1762739410307,0.0227,106090.0,106080.0,0.0542]
[1762739410609,0.1389292,106070.0,106060.0,0.001]
[1762739410906,0.138947,106050.0,106040.0,0.05891]
[1762739411101,0.86274503,106050.0,106040.0,0.05891]
[1762739411410,0.50194503,106050.0,106040.0,0.05891]
[1762739412205,0.50294503,106050.0,106040.0,0.07591]
[1762739413209,0.50594503,106050.0,106040.0,0.07691]
[1762739413712,0.50594503,106050.0,106040.0,0.05991]
[1762739413913,0.50294503,106050.0,106040.0,0.05891]
[1762739414413,0.50194503,106050.0,106040.0,0.05891]
[1762739415005,0.1389559,106040.0,106030.0,0.05905141]
[1762739415210,0.50195393,106040.0,106030.0,0.05905141]
[1762739416009,0.40762803,106040.0,106030.0,0.15338621]
[1762739416410,0.50195393,106040.0,106030.0,0.15338621]
[1762739416607,0.50195393,106040.0,106030.0,0.05905141]
[1762739417020,0.40862803,106040.0,106030.0,0.15438621]
[1762739417207,0.50295393,106040.0,106030.0,0.06005141]
[1762739418610,0.40862803,106040.0,106030.0,0.24611539]
[1762739418813,0.04782803,106040.0,106030.0,0.24611539]
[1762739419008,0.14215393,106040.0,106030.0,0.06005141]
[1762739419409,0.04782803,106040.0,106030.0,0.06005141]
[1762739420818,0.14215393,106040.0,106030.0,0.06005141]
[1762739421121,0.04782803,106040.0,106030.0,0.06005141]
[1762739421416,0.04782803,106040.0,106030.0,0.26611539]
[1762739421417,0.001,106040.0,106030.0,0.26611539]
[1762739421619,0.38317141,106060.0,106050.0,0.05824]
[1762739421917,0.38536944,106060.0,106050.0,0.14996918]
[1762739422113,0.50101764,106060.0,106050.0,0.05824]
[1762739422912,0.50101764,106060.0,106050.0,0.05924]
[1762739422913,0.50601754,106060.0,106050.0,0.05924]
[1762739423711,0.50801754,106060.0,106050.0,0.05924]
[1762739424114,0.52100754,106060.0,106050.0,0.001]
[1762739424524,0.52100754,106060.0,106050.0,0.05924]
[1762739424708,0.50801754,106060.0,106050.0,0.05924]
[1762739425815,0.50801754,106060.0,106050.0,0.04662]
[1762739426023,0.50801754,106060.0,106050.0,0.02389]
[1762739426218,0.50801754,106060.0,106050.0,0.001]
[1762739427015,0.41370944,106060.0,106050.0,0.02389]
[1762739427219,0.50801754,106060.0,106050.0,0.02389]
[1762739427522,0.50801754,106060.0,106050.0,0.001]
[1762739428717,0.59974672,106060.0,106050.0,0.001]
[1762739429323,0.50801754,106060.0,106050.0,0.001]
[1762739433915,0.50801754,106060.0,106050.0,0.05924]
[1762739434222,0.50801754,106060.0,106050.0,0.04662]
[1762739434421,0.50801754,106060.0,106050.0,0.001]
[1762739438125,0.55848038,106060.0,106050.0,0.001]
[1762739438721,0.50801754,106060.0,106050.0,0.02389]
[1762739439022,0.55848038,106060.0,106050.0,0.02389]
[1762739440430,0.55848038,106060.0,106050.0,0.001]
[1762739445829,0.55848038,106060.0,106050.0,0.02389]
[1762739446032,0.55848038,106060.0,106050.0,0.001]
[1762739447542,0.50801754,106060.0,106050.0,0.001]
[1762739447832,0.55859526,106060.0,106050.0,0.001]
[1762739448545,0.55859526,106060.0,106050.0,0.02389]
[1762739449340,0.55859526,106060.0,106050.0,0.04581]
[1762739450631,0.55859526,106060.0,106050.0,0.02389]
[1762739451442,0.41137772,106070.0,106060.0,0.1505981]
[1762739451631,0.41137772,106080.0,106070.0,0.1505892]
[1762739451833,0.05277575,106080.0,106070.0,1.03713918]
[1762739452032,0.00219803,106080.0,106070.0,1.05713918]
[1762739452434,0.00219803,106080.0,106070.0,1.15143838]
[1762739452734,0.00319803,106080.0,106070.0,1.15143838]
[1762739453540,0.10048833,106080.0,106070.0,1.05813918]
[1762739453742,0.00619803,106080.0,106070.0,1.05813918]
[1762739453941,0.10048833,106080.0,106070.0,1.05813918]
[1762739454550,0.00619803,106080.0,106070.0,1.05813918]
[1762739454738,0.10048833,106080.0,106070.0,1.05813918]
[1762739455044,0.00619803,106080.0,106070.0,0.43809]
[1762739455945,0.10048833,106080.0,106070.0,0.43809]
[1762739456147,0.00619803,106080.0,106070.0,0.5323892]
[1762739456445,0.004,106080.0,106070.0,0.55776106]
[1762739456939,0.498993,106100.0,106090.0,0.05629]
[1762739457138,0.50119103,106100.0,106090.0,0.05629]
[1762739457334,0.32904762,106100.0,106090.0,0.1505714]
[1762739457540,0.00219803,106100.0,106090.0,0.1505714]
[1762739457740,0.4763844,106110.0,106100.0,0.05629]
[1762739457940,0.4763802,106120.0,106110.0,0.05629]
[1762739458130,0.4763802,106120.0,106110.0,0.05758069]
[1762739458131,0.47857823,106120.0,106110.0,0.05758069]
[1762739458330,0.50117823,106120.0,106110.0,0.05758069]
[1762739459836,0.50217283,106120.0,106110.0,0.05758069]
[1762739460236,0.40791803,106120.0,106110.0,0.05758069]
[1762739460438,0.36399803,106120.0,106110.0,0.05758069]
[1762739460640,0.3618,106120.0,106110.0,0.15184439]
[1762739460842,0.3618,106120.0,106110.0,0.76824439]
[1762739460843,0.001,106120.0,106110.0,0.76824439]
[1762739461041,0.001,106120.0,106110.0,0.53264439]
[1762739461544,0.001,106120.0,106110.0,0.76824439]
[1762739461734,0.45529772,106140.0,106130.0,0.05629]
[1762739461936,0.55173275,106140.0,106130.0,0.05629]
[1762739462134,0.40691803,106140.0,106130.0,0.05758069]
[1762739462341,0.50115503,106140.0,106130.0,0.05758069]
[1762739462833,0.40691803,106140.0,106130.0,0.05758069]
[1762739463033,0.50515503,106140.0,106130.0,0.05758069]
[1762739463637,0.05011803,106140.0,106130.0,0.05758069]
[1762739463839,0.004,106140.0,106130.0,0.15182659]
[1762739464040,0.43269772,106160.0,106150.0,0.02118]
[1762739464242,0.52911505,106160.0,106150.0,0.04532547]
[1762739464837,0.45749575,106160.0,106150.0,0.04532547]
[1762739465144,0.50113733,106160.0,106150.0,0.04532547]
[1762739465531,0.02351803,106160.0,106150.0,0.04532547]
[1762739465737,0.51384733,106160.0,106150.0,0.01021547]
[1762739465944,0.51384733,106160.0,106150.0,0.01121547]
[1762739466243,0.51384733,106160.0,106150.0,0.03313547]
[1762739467036,0.56442505,106160.0,106150.0,0.00229069]
[1762739468237,0.56742505,106160.0,106150.0,0.00129069]
[1762739468439,0.51884733,106160.0,106150.0,0.00129069]
[1762739468940,0.56942505,106160.0,106150.0,0.00129069]
[1762739469143,0.51884733,106160.0,106150.0,0.00129069]
[1762739469537,0.51884733,106160.0,106150.0,0.04439069]
[1762739469740,0.50613733,106160.0,106150.0,0.05758069]
[1762739469944,0.41191803,106160.0,106150.0,0.29011882]
[1762739470544,0.05111803,106160.0,106150.0,0.29011882]
[1762739470742,0.00719803,106160.0,106150.0,0.29011882]
[1762739471249,0.005,106160.0,106150.0,0.67091882]
[1762739471849,0.05111803,106160.0,106150.0,0.57669072]
[1762739472047,0.14533733,106160.0,106150.0,0.57669072]
[1762739472250,0.14233733,106160.0,106150.0,0.57769072]
[1762739472546,0.04811803,106160.0,106150.0,0.57769072]
[1762739472744,0.14233733,106160.0,106150.0,0.19689072]
[1762739473333,0.14033733,106160.0,106150.0,0.19689072]
[1762739473538,0.14033733,106160.0,106150.0,0.19789072]
[1762739474250,0.04611803,106160.0,106150.0,0.29211892]
[1762739474842,0.40472,106170.0,106160.0,0.05629]
[1762739475043,0.50112843,106170.0,106160.0,0.05629]
[1762739475340,0.50112843,106170.0,106160.0,0.05758069]
[1762739475542,0.51022843,106170.0,106160.0,0.05758069]
[1762739476244,0.51022843,106170.0,106160.0,0.04439069]
[1762739477548,0.56080615,106170.0,106160.0,0.00129069]
[1762739477943,0.56080615,106170.0,106140.0,0.16073141]
[1762739477944,0.1381481,106150.0,106140.0,0.05643141]
[1762739478151,0.51385613,106150.0,106140.0,0.05643141]
[1762739478542,0.51385613,106150.0,106140.0,0.15066841]
[1762739479148,0.51385613,106150.0,106140.0,0.05643141]
[1762739479347,0.87465613,106150.0,106140.0,0.00014141]
[1762739480046,0.87465613,106150.0,106140.0,0.00114141]
[1762739480241,0.92523385,106150.0,106140.0,0.00114141]
[1762739480445,0.92523385,106150.0,106140.0,0.02338141]
[1762739480650,0.92523385,106150.0,106140.0,0.02438141]
[1762739481249,0.92523385,106150.0,106140.0,0.04754141]
[1762739482344,0.92523385,106150.0,106140.0,0.06101141]
[1762739483149,0.92523385,106150.0,106140.0,0.03222101]
[1762739484244,0.94185345,106150.0,106140.0,0.03222101]
[1762739485056,0.87465613,106150.0,106140.0,0.03222101]
[1762739485347,0.94185345,106150.0,106140.0,0.03222101]
[1762739485850,0.22025345,106150.0,106140.0,0.13931003]
[1762739486045,0.22025345,106150.0,106140.0,0.001]
[1762739486046,0.51385613,106150.0,106140.0,0.001]
[1762739486352,0.56439382,106150.0,106140.0,0.001]
[1762739486556,0.51385613,106150.0,106140.0,0.001]
[1762739487047,0.58105345,106150.0,106140.0,0.001]
[1762739487253,0.1506169,106140.0,106130.0,0.00014141]
[1762739487446,0.49098636,106140.0,106130.0,0.02238141]
[1762739487647,0.49098636,106140.0,106130.0,0.04554141]
[1762739489851,0.49098636,106140.0,106090.0,0.0847916]
[1762739489852,0.04352,106110.0,106090.0,0.0847916]
[1762739490042,0.0942813,106090.0,106070.0,0.084724]
[1762739490247,0.0942991,106070.0,106060.0,0.0473596]
[1762739490555,0.09649713,106070.0,106060.0,0.01347]
[1762739490857,0.81817653,106070.0,106060.0,0.01347]
[1762739491057,0.81817653,106070.0,106060.0,0.03571]
[1762739491654,0.81817653,106070.0,106060.0,0.05887]
[1762739492153,0.81817653,106070.0,106060.0,0.06087]
[1762739492547,0.81817653,106070.0,106060.0,0.01847]
[1762739492746,0.81817653,106070.0,106060.0,0.005]
[1762739494455,0.81817653,106070.0,106060.0,1e-07]
[1762739498755,0.81817653,106070.0,106060.0,0.0134701]
[1762739500052,0.81817653,106070.0,106060.0,0.0588701]
[1762739504151,0.79553489,106070.0,106060.0,0.0588701]
[1762739509260,0.79553489,106070.0,106060.0,0.0134701]
[1762739509657,0.79553489,106070.0,106060.0,1e-07]
[1762739510070,0.0943081,106060.0,106050.0,0.01361141]
[1762739510262,0.45730613,106060.0,106050.0,0.01361141]
[1762739511359,0.46030613,106060.0,106050.0,0.08200141]
[1762739512265,0.43766196,106060.0,106050.0,0.08200141]
[1762739517165,0.4882381,106060.0,106050.0,0.08200141]
[1762739517365,0.43766196,106060.0,106050.0,0.08200141]
[1762739518560,0.4882381,106060.0,106050.0,0.08200141]
[1762739521070,0.43766196,106060.0,106050.0,0.08200141]
[1762739521965,0.003,106060.0,106050.0,0.44280141]
[1762739522263,0.003,106060.0,106050.0,0.5545618]
[1762739522264,0.09950603,106060.0,106050.0,0.5545618]
[1762739522465,0.16148752,106080.0,106070.0,0.056]
[1762739522770,0.16368555,106080.0,106070.0,0.14776039]
[1762739523067,0.49622823,106080.0,106070.0,0.14776039]
[1762739523675,0.49622823,106080.0,106070.0,0.14676039]
[1762739523676,0.47359218,106080.0,106070.0,0.14676039]
[1762739524064,0.47359218,106080.0,106070.0,0.055]
[1762739524775,0.1352391,106070.0,106060.0,0.056]
[1762739524959,0.49823713,106070.0,106060.0,0.056]
[1762739527173,0.49923713,106070.0,106060.0,0.056]
[1762739527561,0.04413803,106070.0,106060.0,0.056]
[1762739527770,0.13843713,106070.0,106060.0,0.056]
[1762739528469,0.1147691,106070.0,106060.0,0.50856039]
[1762739528662,0.10521382,106070.0,106060.0,0.14995842]
[1762739528862,0.10521382,106070.0,106060.0,0.05819803]
[1762739529580,0.04167267,106070.0,106060.0,0.05819803]
[1762739529772,0.13597177,106070.0,106060.0,0.06419803]
[1762739530273,0.13597177,106070.0,106060.0,0.07019803]
[1762739530472,0.14197177,106070.0,106060.0,0.06419803]
[1762739530673,0.14397177,106070.0,106060.0,0.05819803]
[1762739530969,0.04967267,106070.0,106060.0,0.05819803]
[1762739531268,0.13597177,106070.0,106060.0,0.07019803]
[1762739531672,0.04167267,106070.0,106060.0,0.07019803]
[1762739532277,0.13597177,106070.0,106060.0,0.07019803]
[1762739532466,0.49677177,106070.0,106060.0,0.07019803]
[1762739532670,0.13597177,106070.0,106060.0,0.07019803]
[1762739532871,0.13597177,106070.0,106060.0,0.43099803]
[1762739533073,0.13597177,106070.0,106060.0,0.07019803]
[1762739533269,0.152378,106060.0,106050.0,0.00014141]
[1762739533473,0.51537603,106060.0,106050.0,0.00014141]
[1762739534571,0.51637603,106060.0,106050.0,0.01214141]
[1762739534773,0.51637603,106060.0,106050.0,0.01814141]
[1762739535076,0.09750603,106060.0,106050.0,0.06960141]
[1762739535480,0.15557603,106060.0,106050.0,0.06960141]
[1762739535778,0.15557603,106060.0,106050.0,0.06053141]
[1762739535982,0.51637603,106060.0,106050.0,0.06053141]
[1762739536279,0.15557603,106060.0,106050.0,0.06960141]
[1762739536774,0.14279603,106060.0,106050.0,0.06960141]
[1762739537278,0.04848803,106060.0,106050.0,0.06960141]
[1762739537670,0.46205801,106070.0,106050.0,0.8521987]
[1762739537872,0.50808068,106070.0,106060.0,0.056]
[1762739538076,0.152378,106060.0,106050.0,0.03928141]
[1762739538267,0.51391067,106060.0,106050.0,0.02033944]
[1762739538470,0.15311067,106060.0,106050.0,0.06272944]
[1762739538779,0.51391067,106060.0,106050.0,0.06272944]
[1762739539376,0.51391067,106060.0,106050.0,0.05972944]
[1762739540084,0.51391067,106060.0,106050.0,0.06072944]
[1762739540584,0.51391067,106060.0,106050.0,0.04872944]
[1762739540782,0.15311067,106060.0,106050.0,0.07002944]
[1762739541079,0.51391067,106060.0,106050.0,0.03634944]
[1762739541385,0.51391067,106060.0,106050.0,0.05864944]
[1762739541778,0.51391067,106060.0,106050.0,0.15040983]
[1762739543480,0.51391067,106060.0,106050.0,0.14240983]
[1762739543681,0.51491067,106060.0,106050.0,0.13010983]
[1762739544183,0.51491067,106060.0,106050.0,0.01633944]
[1762739544580,0.51491067,106060.0,106050.0,0.01414141]
[1762739544777,0.1521347,106030.0,106020.0,0.0444125]
[1762739544981,0.15286737,106030.0,106020.0,0.05693053]
[1762739545482,0.51366737,106030.0,106020.0,0.04661053]
[1762739545785,0.51366737,106030.0,106020.0,0.00230053]
[1762739546181,0.51466737,106030.0,106020.0,0.01830053]
[1762739546882,0.51666737,106030.0,106020.0,0.04230053]
[1762739547286,0.1528136,106020.0,106010.0,0.00014141]
[1762739547487,0.51434627,106020.0,106010.0,0.00014141]
[1762739548287,0.1507214,106000.0,105990.0,0.07817752]
[1762739548479,0.51225407,106000.0,105990.0,0.08037555]
[1762739550879,0.51325407,106000.0,105990.0,0.08237555]
[1762739551976,0.51325407,106000.0,105990.0,0.03806555]
[1762739552377,0.51325407,106000.0,105990.0,0.00419803]
[1762739552982,0.51325407,106000.0,105990.0,0.09595842]
[1762739553486,0.15245407,106000.0,105990.0,0.14026842]
[1762739554790,0.00014141,106010.0,106000.0,0.1519714]
[1762739554984,0.00014141,106010.0,106000.0,0.44060803]
[1762739554985,0.00087408,106010.0,106000.0,0.44060803]
[1762739555194,0.13991658,106010.0,106000.0,0.44060803]
[1762739555987,0.14891658,106010.0,106000.0,0.44160803]
[1762739556184,0.16091658,106010.0,106000.0,0.44360803]
[1762739556682,0.06583141,106010.0,106000.0,0.77120842]
[1762739556887,0.16091658,106010.0,106000.0,0.44360803]
[1762739557083,0.15569658,106010.0,106000.0,0.45660803]
[1762739557288,0.15669658,106010.0,106000.0,0.46560803]
[1762739557686,0.15669658,106010.0,106000.0,0.40799803]
[1762739557993,0.1273103,105990.0,105980.0,0.03400893]
[1762739558186,0.12813331,105990.0,105980.0,0.00014141]
[1762739558791,0.84973331,105990.0,105980.0,1e-08]
[1762739559387,0.85073331,105990.0,105980.0,1e-08]
[1762739559890,0.85073331,105990.0,105980.0,0.00700001]
[1762739560193,0.85273331,105990.0,105980.0,1e-08]
[1762739561296,0.1273192,105980.0,105970.0,1e-08]
[1762739561493,0.48885187,105980.0,105970.0,1e-08]
[1762739562386,0.48985187,105980.0,105970.0,1e-08]
[1762739562587,0.49285187,105980.0,105970.0,1e-08]
[1762739563389,0.49285187,105980.0,105970.0,0.00219804]
[1762739563598,0.49285187,105980.0,105970.0,0.08037556]
[1762739566292,0.49285187,105980.0,105970.0,0.17213595]
[1762739567585,0.49285187,105980.0,105970.0,0.08037556]
[1762739568800,0.49285187,105980.0,105970.0,0.09424556]
[1762739569098,0.45886934,105980.0,105970.0,0.09424556]
[1762739570800,0.09911187,105980.0,105970.0,0.20269194]
[1762739571101,0.45991187,105980.0,105970.0,0.09417359]